Cogmind - Beta 13 @@@ ROGUE MODE // 2024.04.05 @ 11:31:33 Player: writers.room Result: Destroyed by S-10 Pest with Light Assault Rifle Performance ------------- Evolutions (0) 0 Regions Visited (1) 200 Robots Destroyed (24) 120 Value Destroyed (415) 415 Prototype IDs (0) 0 Alien Tech Used (0) 0 Bonus (0) 0 TOTAL SCORE: 735 Bonus ------- None Cogmind --------- Core Integrity 0/250 Matter 300/300 Energy 250/250 System Corruption 0% Temperature Cool (0) Movement Walking (120) Location -10/Materials Parts ------- > --- POWER (1) -------- Ion Engine > --- PROPULSION (2) --- Aluminum Leg Aluminum Leg > --- UTILITY (2) ------ Structural Scanner Tractor Beam > --- WEAPON (2) ------- Hammer Hammer > --- INVENTORY (5) ---- Ion Engine Aluminum Leg Aluminum Leg Hammer Peak State ------------ > --- POWER ------------ Ion Engine > --- PROPULSION ------- Light Treads Light Treads > --- UTILITY ---------- Large Battery Structural Scanner > --- WEAPON ----------- Beam Cannon Assault Rifle > --- INVENTORY -------- Assault Rifle Assault Rifle Assault Rifle Assault Rifle [Rating: 7] Favorites ----------- Power Ion Engine Engine Ion Engine Propulsion Light Treads Treads Light Treads Leg Aluminum Leg Utility Structural Scanner Device Structural Scanner Storage Large Battery Weapon Beam Cannon Energy Cannon Beam Cannon Ballistic Gun Assault Rifle Impact Weapon Hammer Build | -11 -10 ------- Run | Yrd Mat Slots Evolved . | . . Power . | . . Propulsion . | . . Utility . | . . Weapon . | . . Parts Attached 14 | 2 12 Power 2 | . 2 Engine 2 | . 2 Core . | . . Reactor . | . . Propulsion 4 | 2 2 Treads 2 | 2 . Leg 2 | . 2 Wheel . | . . Hover . | . . Flight . | . . Utility 4 | . 4 Device 3 | . 3 Storage 1 | . 1 Processor . | . . Hackware . | . . Protection . | . . Artifact . | . . Weapon 4 | . 4 Energy Gun . | . . Energy Cannon 1 | . 1 Ballistic Gun 1 | . 1 Ballistic Cannon . | . . Launcher . | . . Special Weapon . | . . Impact Weapon 2 | . 2 Slashing Weapon . | . . Piercing Weapon . | . . Special Melee Weapon . | . . Unidentified Prototypes . | . . Parts Lost 2 | . 2 Power . | . . Propulsion 1 | . 1 Utility 1 | . 1 Weapon . | . . Highest Loss Streak 1 | . 1 To Critical Strikes . | . . Average Slot Usage (%) 80 | . 80 Engine 11 | . 11 Treads 18 | . 18 Leg 8 | . 8 Device 14 | . 14 Storage 2 | . 2 Energy Cannon 9 | . 9 Ballistic Gun 6 | . 6 Impact Weapon 7 | . 7 Naked Turns . | . . Heaviest Build 14 | . 14 Greatest Support 40 | 40 40 Greatest Overweight (x) . | . . Average Overweight (x) . | . . Largest Inventory Capacity 5 | 5 5 Average Capacity 5 | 5 5 Most Carried 5 | . 5 Average Carried 2 | . 3 Final Capacity 5 | 5 5 Final Carried 4 | . 4 Class Distribution -------------------- 78% | Mutant 21% | Scavenger-Mutant Dominant Class ---------------- Mutant | -10/Materials Resources | -11 -10 ----------- Run | Yrd Mat Matter Collected 430 | . 430 Remotely . | . . Salvage Created 787 | . 787 Parts 32 | . 32 Haulers Intercepted 1 | . 1 Recyclers Shooed 2 | . 2 Parts Field Recycled . | . . Retrieved Matter . | . . Parts Self-Destructed . | . . Prevented . | . . Kills | -11 -10 ------- Run | Yrd Mat Combat Hostiles Destroyed 12 | . 12 Melee 1 | . 1 Guns 1 | . 1 Cannons 9 | . 9 Classes Destroyed 9 | . 9 Worker 3 | . 3 Builder 1 | . 1 Tunneler 1 | . 1 Hauler 1 | . 1 Recycler 4 | . 4 Mechanic 1 | . 1 Watcher 1 | . 1 Swarmer 4 | . 4 Grunt 8 | . 8 Best Kill Streak 5 | . 5 Combat Bots Only 2 | . 2 Max Kills in Single Turn 1 | . 1 Gunslinging . | . . Exploded . | . . Melee 1 | . 1 Uniques/NPCs Destroyed . | . . Combat | -11 -10 -------- Run | Yrd Mat Hostile Shots Fired 130 | . 130 Missed 51 | . 51 Damage Taken 856 | . 856 Core 251 | . 251 Absorbed by Shields . | . . Core Remaining (%) 100 | 100 . Volleys Fired 63 | . 63 Largest 2 | . 2 Hottest 80 | . 80 Shots Fired 106 | . 106 Gun 43 | . 43 Cannon 63 | . 63 Launcher . | . . Special . | . . Kinetic 43 | . 43 Thermal 63 | . 63 Explosive . | . . Electromagnetic . | . . Robot Hit Streak 4 | . 4 Robot Miss Streak 10 | . 10 Penetration Max . | . . Secondary Targets . | . . Shots Hit Robots 67 | . 67 Core Hits 19 | 1 18 Critical Kills 1 | . 1 Critical Parts Destroyed 3 | . 3 Critical Strikes 4 | . 4 Destroy 1 | . 1 Smash 3 | . 3 Melee Attacks 21 | . 21 Impact 21 | . 21 Slashing . | . . Piercing . | . . Sneak Attacks 8 | . 8 Combat Hostiles . | . . Follow-up Attacks 1 | . 1 Damage Inflicted 1489 | 6 1483 Guns 267 | . 267 Cannons 633 | . 633 Explosions . | . . Melee 577 | . 577 Ramming 12 | 6 6 Kinetic 267 | . 267 Thermal 633 | . 633 Explosive . | . . Electromagnetic . | . . Impact 577 | . 577 Slashing . | . . Piercing . | . . Highest Corruption . | . . Average Corruption . | . . Corruption Purged . | . . Corruption Blocked . | . . Overload Shots . | . . Overflow Damage 220 | . 220 Projectiles 16 | . 16 Explosions . | . . Melee 204 | . 204 Knockbacks 2 | . 2 Impact 2 | . 2 Kinetic . | . . Secondary . | . . Self-Inflicted Damage . | . . Shots . | . . Rammed 10 | 5 5 Targets Rammed 10 | 5 5 Kicked . | . . Crushed . | . . Highest Temperature 309 | . 309 Average Temperature 77 | . 77 Received Heat Transfer 228 | . 228 Siege Activations . | . . Robots Corrupted . | . . Combat Hostiles . | . . Parts Fried 10 | . 10 Impact Corruptions 10 | . 10 Robots Melted . | . . Combat Hostiles . | . . Parts Melted . | . . Heat Transferred 1332 | . 1332 Parts Sabotaged . | . . Parts Stolen . | . . Parts Stripped . | . . Power Chain Reactions . | . . Alert | -11 -10 ------- Run | Yrd Mat Peak Influence 247 | . 247 Initial . | . . Average 97 | . 105 Maximum Alert Level 1 | . 1 Low Security (%) 95 | 100 95 Level 1 4 | . 4 Level 2 . | . . Level 3 . | . . Level 4 . | . . Level 5 . | . . High Security . | . . Max Security . | . . Squads Dispatched 2 | . 2 Investigation . | . . Extermination . | . . Reinforcement 2 | . 2 Assault . | . . Garrison . | . . Intercept . | . . Searches Triggered . | . . Construction Impeded . | . . Haulers Reinforced . | . . Active Scanning Responses . | . . Cargo Convoy Interrupts . | . . Stealth | -11 -10 --------- Run | Yrd Mat Distress Signals . | . . Communications Jammed . | . . Distress Signals . | . . Times Spotted 28 | . 28 Peak Tracking Total 5 | . 5 Tactical Retreats 2 | . 2 Traps | -11 -10 ------- Run | Yrd Mat Traps Triggered . | . . Indirectly . | . . Trap Hack Attempts . | . . Triggered . | . . Disarmed . | . . Reprogrammed . | . . Reused . | . . Traps Extracted . | . . Installed . | . . Triggered . | . . Machines | -11 -10 ---------- Run | Yrd Mat Machines Disabled 3 | . 3 Max in Single Turn 1 | . 1 Machines Repaired . | . . Machines Dismantled . | . . Machines Sabotaged . | . . Overloaded Fab Kills . | . . Hacking | -11 -10 --------- Run | Yrd Mat Machines Accessed 2 | . 2 Terminals 1 | . 1 Fabricators . | . . Repair Stations . | . . Recycling Units 1 | . 1 Scanalyzers . | . . Garrison Access . | . . Total Hacks 6 | . 6 Successful 4 | . 4 Failed 2 | . 2 Catastrophic . | . . Database Lockouts . | . . Manual . | . . Terminals 3 | . 3 Fabricators . | . . Repair Stations . | . . Recycling Units 3 | . 3 Scanalyzers . | . . Garrison Access . | . . Terminal Hacks 2 | . 2 Alert Level 2 | . 2 Fabricator Hacks . | . . Repair Station Hacks . | . . Recycling Unit Hacks 2 | . 2 Report Inventory 1 | . 1 Retrieve Components 1 | . 1 Scanalyzer . | . . Garrison Access Hacks . | . . Unauthorized Hacks . | . . Terminals . | . . Fabricators . | . . Repair Stations . | . . Recycling Units . | . . Scanalyzers . | . . Garrison Access . | . . Data Cores Recovered . | . . Used . | . . Hacking Detections 2 | . 2 Full Trace Events . | . . Feedback Events . | . . Feedback Blocked . | . . Robot Schematics Acquired . | . . Robots Built . | . . Authchips . | . . Time . | . . Total Robot Build Rating . | . . Part Schematics Acquired . | . . Parts Built . | . . Authchips . | . . Time . | . . Total Part Build Rating . | . . Parts Repaired . | . . Time . | . . Parts Recycled . | . . Recycled Matter . | . . Retrieved Matter . | . . Retrieved Components 7 | . 7 Parts Scanalyzed . | . . Part Schematics Acquired . | . . Parts Damaged . | . . Bothacking | -11 -10 ------------ Run | Yrd Mat Used RIF Installer . | . . Robots Hacked . | . . Non-combat . | . . Combat . | . . Robot Hacks Applied . | . . Relay Couplers Released . | . . Fabnet Peak Effective % . | . . Robots Rewired . | . . Allies Hacked . | . . Hacks Repelled . | . . Allies | -11 -10 -------- Run | Yrd Mat Total Allies . | . . Largest Group . | . . Highest-Rated Group . | . . Highest-Rated Ally . | . . Total Orders . | . . Ally Attacks . | . . Total Damage . | . . Kills . | . . Allies Corrupted . | . . Allies Melted . | . . Intel | -11 -10 ------- Run | Yrd Mat Robot Analysis Total . | . . Derelict Logs Recovered . | . . Drone Launches . | . . Drone Recoveries . | . . Exploration | -11 -10 ------------- Run | Yrd Mat Turns Passed 875 | 66 809 Spaces Moved 417 | 41 376 Core 9 | 9 . Treads 262 | 32 230 Legs 146 | . 146 Wheels . | . . Hover . | . . Flight . | . . Fastest Speed 50 | 50 120 Average Speed 143 | 135 144 Slowest Speed 160 | 160 160 Overloaded Moves . | . . Propulsion Burnouts . | . . Robots Hopped . | . . Cave-ins Triggered . | . . Exploration Rate (%) 23 | 4 42 Regions Visited 1 Branch Regions . Pre-discovered Areas . | . . Known Exits Taken . | . . Unknown Exits Taken 1 | 1 . Scrap Searched . | . . Spaces Dug 2 | . 2 Terrain Destroyed 2 | . 2 Melee 2 | . 2 Projectile . | . . AOE . | . . Terrain Rammed . | . . Walls Destroyed . | . . Machines Disabled . | . . Actions | -11 -10 --------- Run | Yrd Mat Total 545 | 47 498 Wait . | . . Move 416 | 40 376 Hop . | . . Pick Up 10 | . 10 Fast Attach 12 | 2 10 Attach 1 | . 1 Detach 2 | . 2 Swap 1 | . 1 Drop 10 | . 10 Fire 63 | . 63 Melee 20 | . 20 Ram . | . . Kick . | . . Crush 10 | 5 5 Escape Stasis . | . . Rewire . | . . Trap . | . . Miscellaneous . | . . Route ------- -11/Scrapyard -10/Materials (discovered 5 exits: [*Mat x2] / [*Min x2] / [Sub]) History --------- Turn | Location | Event 9 | -11/Scrapyard | Discovered new exit (range 15) 67 | -11/Scrapyard | Entered Materials 300 | -10/Materials | Build established: Mutant 515 | -10/Materials | Discovered new exit (range 8) 536 | -10/Materials | Discovered new exit (range 13) 584 | -10/Materials | Core integrity fell below 50% 616 | -10/Materials | Discovered new exit (range 10) 850 | -10/Materials | Discovered new exit (range 14) 859 | -10/Materials | Core integrity fell below 20% 875 | -10/Materials | Discovered new exit (range 15) 876 | -10/Materials | Destroyed by S-10 Pest with Light Assault Rifle Last Messages --------------- 00783_ Destroyed Lgt. Ion Engine. 00783_ Destroyed Mining Laser. 00783_ T-07 Excavator system corrupted by crushing effect. 00784_ T-07 Excavator system terminally corrupted. 00784_ Wheel fried. 00822_ Machine disabled. 00826_ U-05 Engineer builds a Wall. 00831_ Material Processor disabled. 00839_ U-05 Engineer lays Concrete. 00850_ EXIT=FOUND 00859_ Destroyed Lgt. Ion Engine. 00859_ S-10 Pest system corrupted by crushing effect. 00860_ S-10 Pest system terminally corrupted. 00860_ Lgt. Assault Rifle fried. 00872_ Hammer follow-up attack on S-10 Pest. 00872_ Destroyed Flight Unit. 00872_ S-10 Pest system corrupted by crushing effect. 00872_ S-10 Pest destroyed. 00872_ R-06 Scavenger inserts Backup Laser I into recycling unit. 00875_ EXIT=FOUND Map ----- +----------------------------------------------------+ | ??????????????????????????????????????? | | ??????????????????????????????????????? | | ??????????????????????????????????????? | | ????? # ????????????????????????????? | | ????? # ???????????????????????????? | | ????? + ??????????????????????????? | | ????? # ##??????????????????????????? | | ????? # ##??????????????????????????? | | ????? # # ??????????????????????????? | | ????? # # ??????????????????????????? | | ????? # + ??????????????????"???????? | | ????? # # ????????????????? ????????? | | ?????## # ######## ????? | | ####### ##################+#####????? | | ####### ##????? | | """""##